bitfinex/quotes_ETHUSD_20251215
["timestamp","ask_amount","ask_price","bid_price","bid_amount"]
[1765764948223,0.002,3123.5,3123.4,5.52054705]
[1765764948418,0.002,3123.5,3123.4,5.48853066]
[1765764950520,0.002,3123.5,3123.4,5.52054705]
[1765764950726,0.002,3123.5,3123.4,5.48853066]
[1765764953348,0.002,3123.5,3123.4,9.94692328]
[1765764953558,0.002,3123.5,3123.4,9.91490689]
[1765764957151,0.002,3123.5,3123.4,4.41125537]
[1765764957338,0.002,3123.5,3123.4,4.12243923]
[1765764957547,0.002,3123.5,3123.4,3.65753923]
[1765764958358,0.0987,3123.5,3123.4,3.20163923]
[1765764959364,0.0987,3123.5,3123.3,3.20172218]
[1765764960253,0.002,3123.5,3123.4,0.4559]
[1765764960453,0.002,3123.5,3123.4,2.08139154]
[1765764960636,0.002,3123.5,3123.4,1.58447515]
[1765764960964,0.002,3123.5,3123.4,2.08139154]
[1765764961172,0.002,3123.5,3123.4,2.04937515]
[1765764961329,0.002,3123.5,3123.4,5.25101438]
[1765764961671,0.002,3123.5,3123.4,5.83148967]
[1765764963159,0.002,3123.5,3123.4,5.86350606]
[1765764969298,0.002,3123.5,3123.4,5.87858967]
[1765764969652,0.002,3123.5,3123.4,10.3049659]
[1765764970142,0.002,3123.5,3123.4,10.3059659]
[1765764970347,0.002,3123.5,3123.4,10.7708659]
[1765764971078,0.002,3123.5,3123.4,10.3059659]
[1765764971795,0.002,3123.5,3123.4,5.36758967]
[1765764971796,0.0987,3123.5,3123.4,5.36758967]
[1765764971950,0.5474,3123.5,3123.4,3.78311452]
[1765764972290,0.0987,3123.5,3123.4,3.78311452]
[1765764972452,0.002,3123.5,3123.4,4.23901452]
[1765764972654,0.002,3123.5,3123.4,9.95768081]
[1765764972844,0.002,3123.5,3123.4,9.92566442]
[1765764983416,0.002,3124.4,3123.7,0.98597929]
[1765764983587,0.002,3124.4,3124.3,10.47923175]
[1765764983787,0.002,3124.4,3124.3,7.6127787]
[1765764983988,0.002,3124.4,3124.3,8.0776787]
[1765764984388,0.002,3124.4,3124.3,11.27839566]
[1765764984925,0.002,3124.9,3124.7,0.4559]
[1765764985215,0.002,3125.6,3125.4,0.6405]
[1765764985386,0.002,3125.6,3125.5,10.40112775]
[1765764985586,0.002,3125.6,3125.5,11.92460053]
[1765764985992,0.002,3125.6,3125.5,11.91074953]
[1765764986408,0.002,3125.6,3125.5,15.11023761]
[1765764987195,0.002,3125.6,3125.5,15.51574161]
[1765764987400,0.002,3125.6,3125.5,6.67684015]
[1765764989218,0.1352,3126.7,3125.6,1.04807529]
[1765764989419,0.1352,3126.7,3125.7,1.94848925]
[1765764989619,0.1352,3126.7,3125.7,2.41178925]
[1765764989816,0.1352,3126.7,3125.8,0.4633]
[1765764990015,0.6191,3126.7,3125.9,0.512]
[1765764990316,0.1372,3126.9,3125.9,0.512]
[1765764990622,0.1372,3126.9,3126.2,0.58047529]
[1765764990787,0.6091,3126.9,3126.3,0.512]
[1765764990987,0.002,3126.9,3126.4,0.4542]
[1765764991209,0.002,3126.9,3126.8,0.4705]
[1765764991409,0.002,3126.9,3126.8,0.9825]
[1765764992705,0.002,3126.9,3126.8,4.76113315]
[1765764992911,0.0793,3126.9,3126.8,4.29063315]
[1765764993504,0.002,3126.9,3126.8,4.76113315]
[1765764993703,0.0793,3126.9,3126.8,3.77863315]
[1765764993992,0.002,3126.9,3126.8,4.76113315]
[1765764995222,0.6817,3126.9,3126.8,4.29063315]
[1765764996496,0.6817,3126.9,3126.8,3.77863315]
[1765764996697,0.6817,3126.9,3126.8,4.29063315]
[1765764996900,0.6817,3126.9,3126.2,3.19871928]
[1765764997100,0.4719,3126.8,3126.6,3.19834603]
[1765764997398,0.002,3126.9,3126.7,0.512]
[1765764997607,0.002,3126.9,3126.8,0.03198157]
[1765764997810,0.0793,3126.9,3126.8,0.03198157]
[1765764998146,0.6817,3126.9,3126.6,6.39670846]
[1765764998343,0.6817,3126.9,3126.6,3.71034603]
[1765764998344,0.0766,3126.7,3126.6,3.71034603]
[1765764998835,0.5453,3126.7,3126.6,3.71034603]
[1765764999038,0.5453,3126.7,3126.6,3.19834603]
[1765765000338,0.0766,3126.7,3126.6,3.88922897]
[1765765001205,0.0766,3126.7,3126.5,3.19846473]
[1765765001636,0.0047,3126.6,3126.5,3.19846473]
[1765765002636,0.6051,3126.9,3126.5,6.39692946]
[1765765003046,0.0805,3126.6,3126.5,3.19846473]
[1765765004046,0.1364,3126.9,3126.5,6.86742946]
[1765765004254,0.6083,3126.9,3126.5,7.98326827]
[1765765004561,0.0773,3126.6,3126.5,4.31430354]
[1765765005021,0.002,3126.9,3126.5,7.51276827]
[1765765005212,0.002,3126.9,3126.5,8.43746827]
[1765765005411,0.002,3126.9,3126.5,7.98326827]
[1765765006026,0.1364,3126.9,3126.5,7.98326827]
[1765765006244,0.6083,3126.9,3126.5,7.98326827]
[1765765007545,0.002,3126.9,3126.5,8.43746827]
[1765765007740,0.002,3126.9,3126.5,7.98326827]
[1765765007916,0.002,3126.9,3126.6,1.21479516]
[1765765010648,0.002,3126.9,3126.8,0.4705]
[1765765010834,0.002,3126.9,3126.7,3.19826014]
[1765765011041,0.5492,3126.8,3126.7,3.77873543]
[1765765011211,0.5492,3126.8,3126.7,3.70926014]
[1765765012342,0.5492,3126.8,3126.7,3.19826014]
[1765765012343,0.0773,3126.8,3126.7,3.19826014]
[1765765012541,0.5453,3126.8,3126.2,6.39750722]
[1765765012744,0.468,3126.8,3126.3,0.58047529]
[1765765012946,0.0812,3126.3,3126.2,3.19873555]
[1765765013448,0.5453,3126.3,3126.2,3.19873555]
[1765765014625,0.5453,3126.3,3126.1,3.77934928]
[1765765014954,0.4641,3126.3,3126.1,3.77934928]
[1765765015139,0.0851,3126.2,3126.1,3.77934928]
[1765765015926,0.5454,3126.2,3126.1,3.77934928]
[1765765016254,0.0851,3126.2,3126.1,3.77934928]
[1765765016860,0.0887,3126.2,3126.1,4.52827275]
[1765765017033,0.0887,3126.2,3126.1,3.77934928]
[1765765017352,0.5454,3126.2,3126.1,3.77934928]
[1765765017832,0.0887,3126.2,3126.1,3.77934928]
[1765765018030,0.5931,3126.9,3126.1,3.77934928]
[1765765018221,0.5931,3126.9,3126.1,10.17709726]
[1765765018415,0.4742,3126.2,3126.1,3.77934928]
[1765765018862,0.002,3126.9,3126.1,15.15209368]
[1765765019163,0.002,3126.9,3126.8,0.4972]
[1765765019461,0.002,3126.9,3126.8,1.0082]
[1765765019664,0.002,3126.9,3126.8,1.5062]
[1765765020832,0.002,3126.9,3126.8,5.28483315]
[1765765021159,0.002,3126.9,3126.8,6.13314374]
[1765765022439,0.002,3126.9,3126.8,6.16512531]
[1765765022639,0.002,3126.9,3126.8,6.13314374]
[1765765024046,0.002,3126.9,3126.8,6.57062931]
[1765765024375,0.002,3126.9,3126.8,6.16134774]
[1765765024558,0.002,3126.9,3126.8,6.16512531]
[1765765024735,0.002,3126.9,3126.8,5.12414374]
[1765765025049,0.002,3126.9,3126.8,6.16512531]
[1765765025233,0.002,3126.9,3126.8,6.13314374]
[1765765025432,0.002,3126.9,3126.8,6.53864774]
[1765765026454,0.003,3128.9,3128.1,0.6901]
[1765765026656,0.003,3128.9,3128.8,0.4972]
[1765765026963,0.003,3128.9,3128.8,5.4755903]
[1765765027267,0.003,3128.9,3128.8,5.4625903]
[1765765027436,0.003,3128.9,3128.8,5.9735903]
[1765765028432,0.003,3128.9,3128.8,6.3790943]
[1765765028941,1e-08,3128.9,3128.8,6.3790943]
[1765765030565,1e-08,3128.9,3128.8,18.8600953]
[1765765030734,1e-08,3128.9,3128.8,6.3790943]
[1765765031752,1e-08,3128.9,3128.8,5.8680943]
[1765765031956,1e-08,3128.9,3128.8,6.3790943]
[1765765032768,1e-08,3128.9,3128.8,12.4145763]
[1765765035671,1e-08,3128.9,3128.8,12.54245374]
[1765765036039,1e-08,3128.9,3128.8,18.93979927]
[1765765036355,1e-08,3128.9,3128.8,10.01784574]
[1765765036987,1e-08,3129.3,3129.2,1.095604]
[1765765037165,0.002,3130.2,3129.5,37.88052482]
[1765765037479,0.11963599,3131.5,3130.6,0.405504]
[1765765037642,0.58003599,3131.5,3131.0,0.58047529]
[1765765038050,0.4742,3131.1,3131.0,0.58047529]
[1765765038462,0.5512,3131.1,3131.0,0.58047529]
[1765765038660,0.5512,3131.1,3130.8,0.511]
[1765765038838,0.6087,3130.9,3130.8,3.70499957]
[1765765039039,0.6087,3130.9,3130.8,4.28547486]
[1765765039243,0.075,3131.0,3130.8,4.28547486]
[1765765039244,0.11963599,3131.5,3130.9,4.07936129]
[1765765039448,0.11963599,3131.5,3131.4,1.27057529]
[1765765039740,0.11963599,3131.5,3131.4,4.97503508]
[1765765039950,0.11963599,3131.5,3131.4,4.28493508]
[1765765040156,0.11963599,3131.5,3131.4,5.18763908]
[1765765040368,0.11963599,3131.5,3131.4,6.52376232]
[1765765040885,0.4604,3132.8,3131.5,0.405504]
[1765765041050,0.1344,3133.1,3131.7,0.405504]
[1765765041370,0.1344,3133.1,3132.0,0.405504]
[1765765041571,0.511,3134.9,3132.9,1.095604]
[1765765041572,0.5949,3134.0,3132.9,1.095604]
[1765765041773,0.1317,3133.8,3132.9,5.37801008]
[1765765041972,0.4604,3133.7,3132.9,5.77914741]
[1765765042173,0.1317,3133.8,3132.9,4.77960608]
[1765765042576,0.1317,3133.8,3132.9,5.68311008]
[1765765043384,0.4604,3135.9,3133.1,0.98597929]
[1765765043677,0.1344,3136.0,3133.0,18.055972]
[1765765043678,0.4604,3135.8,3134.0,0.405504]
[1765765043880,9.56724174,3135.7,3134.1,0.58047529]
[1765765044069,1.58323946,3135.6,3134.1,0.58047529]
[1765765044267,0.2232,3134.2,3134.1,0.58047529]
[1765765044576,0.1345,3134.3,3134.0,3.70075649]
[1765765044890,0.4604,3135.5,3134.1,0.77337529]
[1765765045047,0.4604,3135.5,3134.2,0.4972]
[1765765045247,0.1344,3136.0,3134.3,0.17685753]
[1765765045552,0.5948,3136.0,3134.4,6.90734553]
[1765765045761,0.5948,3136.0,3134.8,0.58047529]
[1765765046065,0.5948,3136.0,3134.9,0.51]
[1765765046066,0.1344,3136.0,3134.9,0.51]
[1765765046259,0.1344,3136.0,3135.1,0.58047529]
[1765765046458,0.1344,3136.0,3135.2,0.69778208]
[1765765046655,0.1344,3136.0,3134.7,3.19009793]
[1765765046656,0.0576,3135.2,3134.7,3.19009793]
[1765765046855,0.4919,3135.9,3134.8,0.58047529]
[1765765047062,0.4919,3135.8,3134.8,0.58047529]
[1765765047258,0.1344,3136.0,3134.9,0.51]
[1765765047476,0.6263,3136.0,3135.0,0.51]
[1765765047692,0.1921,3134.9,3134.8,0.58047529]
[1765765047861,0.1921,3134.9,3134.8,4.28047146]
[1765765048383,0.1921,3134.9,3133.9,6.86924553]
[1765765048384,0.6674,3134.9,3134.2,3.19059837]
[1765765048548,0.0169,3134.7,3133.2,0.4976]
[1765765048748,0.0169,3134.7,3134.0,3.19078816]
[1765765048953,0.4753,3134.6,3134.0,6.38159862]
[1765765049190,0.4753,3134.6,3134.0,3.19078816]
[1765765049399,0.4753,3134.6,3133.1,0.1929]
[1765765049555,0.4753,3134.6,3133.1,1.13921107]
[1765765049894,3.19030148,3134.5,3133.2,6.38323535]
[1765765050050,0.4753,3134.6,3133.2,9.57486052]
[1765765050256,0.1345,3134.9,3133.4,0.405504]
[1765765050454,0.1345,3134.9,3133.8,0.58047529]
[1765765050660,0.1345,3134.9,3133.9,0.51]
[1765765051112,0.4753,3134.8,3133.3,0.4976]
[1765765051272,0.37997415,3134.7,3133.4,0.51]
[1765765051465,0.2051,3133.4,3133.1,3.1916583]
[1765765051705,0.077,3134.6,3133.2,0.03191625]
[1765765051885,0.077,3134.6,3132.5,10.3000762]
[1765765051886,0.2056,3133.2,3132.7,6.38418223]
[1765765052056,0.2056,3133.2,3132.7,3.19204765]
[1765765052256,0.6074,3132.8,3132.6,3.19221091]
[1765765052492,0.1361,3132.8,3131.5,0.001]
[1765765052660,0.1361,3132.8,3132.3,3.1925294]
[1765765052865,0.4753,3132.7,3131.5,0.512]
[1765765053199,0.1317,3133.2,3132.6,6.38443781]
[1765765053356,0.4753,3133.1,3132.6,3.19220133]
[1765765053560,0.1361,3132.7,3132.6,3.19220133]
[1765765053816,0.1317,3133.2,3132.6,3.19220133]
[1765765054000,0.1317,3133.4,3132.7,0.58047529]
[1765765054286,0.4753,3133.9,3132.8,0.511]
[1765765054857,0.1361,3134.0,3132.9,0.0319193]
[1765765055082,0.1361,3134.0,3133.0,0.4976]
[1765765055280,0.1361,3134.0,3133.1,0.03191727]
[1765765055482,0.1361,3134.0,3133.2,0.511]
[1765765055668,0.6114,3134.0,3133.2,0.511]
[1765765055866,0.1361,3134.0,3133.3,6.38304662]
[1765765056071,0.1361,3134.0,3133.4,0.58047529]
[1765765056291,0.1317,3134.1,3133.4,0.58047529]
[1765765056792,0.1361,3133.5,3133.2,3.19159808]
[1765765057182,0.6114,3133.5,3132.4,0.4976]
[1765765057489,0.6114,3133.5,3133.2,6.38324242]
[1765765057870,0.1361,3133.5,3133.1,0.58047529]
[1765765058103,0.1317,3134.1,3133.2,1.0155962]
[1765765058305,0.1317,3134.1,3133.3,0.511]
[1765765058471,0.607,3134.1,3133.2,1.0155962]
[1765765058668,0.607,3134.1,3133.1,0.58047529]
[1765765058669,3.79771445,3134.1,3133.1,0.58047529]
[1765765058867,0.4753,3134.0,3133.0,3.70282891]
[1765765059098,0.4753,3134.0,3132.2,6.59681069]
[1765765059099,0.002,3133.5,3132.2,6.59681069]
[1765765059404,0.002,3133.5,3132.9,6.38386158]
[1765765059899,0.002,3133.5,3132.9,3.19193079]
[1765765060104,0.002,3133.5,3132.7,6.96474445]
[1765765060466,0.4753,3133.4,3132.7,6.96474445]
[1765765061012,0.1361,3132.8,3132.7,3.19213458]
[1765765061165,0.1361,3133.3,3132.7,6.38426916]
[1765765061361,0.1361,3133.3,3132.8,0.58047529]
[1765765061567,0.1361,3133.3,3132.9,0.511]
[1765765062002,0.1361,3133.3,3133.0,6.38365782]
[1765765062188,0.002,3133.5,3133.1,0.58047529]
[1765765063590,0.4773,3133.5,3133.2,0.512]
[1765765063785,0.4773,3133.5,3133.4,22.60188129]
[1765765063786,0.002,3133.5,3133.4,22.60188129]
[1765765064003,0.002,3133.5,3133.4,23.00738529]
[1765765064200,0.002,3133.5,3133.4,26.69640674]
[1765765064511,0.002,3134.8,3133.7,0.58047529]
[1765765064699,0.002,3134.8,3133.8,1.5854726]
[1765765064871,0.002,3134.8,3133.9,0.03190912]
[1765765065208,0.002,3134.8,3134.0,0.512]
[1765765065423,0.002,3134.8,3134.1,0.03190708]
[1765765065632,0.002,3134.8,3134.1,0.21310708]
[1765765066134,0.002,3134.8,3134.3,0.58047529]
[1765765066315,0.002,3134.8,3134.4,0.512]
[1765765066490,0.002,3134.8,3134.3,0.58047529]
[1765765066491,0.0739,3134.4,3134.3,1.09247529]
[1765765066687,0.0739,3134.4,3134.2,3.19060685]
[1765765066888,0.002,3134.8,3134.2,0.58047529]
[1765765066889,0.4728,3134.3,3134.2,0.58047529]
[1765765067089,0.002,3134.8,3134.3,0.58047529]
[1765765067291,0.002,3134.8,3134.4,0.511]
[1765765068118,0.002,3134.8,3134.5,6.38060296]
[1765765070613,0.0739,3134.6,3133.2,0.42843042]
[1765765070926,0.002,3134.8,3133.2,0.42843042]
[1765765070927,0.002,3134.8,3134.4,6.38080652]
[1765765071297,0.4728,3134.5,3134.4,3.19040326]
[1765765071491,0.0784,3134.8,3134.4,3.19040326]
[1765765071492,0.002,3134.8,3134.4,6.38080652]
[1765765071697,0.002,3134.8,3134.5,1.76564946]
[1765765071927,0.002,3134.8,3134.5,1.63803766]
[1765765072233,0.002,3134.8,3134.6,3.1901997]
[1765765074025,0.002,3134.8,3134.7,0.58047529]
[1765765074500,0.002,3134.8,3134.7,3.77057322]
[1765765074795,0.002,3134.8,3134.7,5.53807763]
[1765765075000,0.002,3134.8,3134.7,4.58197763]
[1765765075201,0.002,3134.8,3134.7,4.28257322]
[1765765075928,0.0759,3134.8,3134.7,4.28257322]
[1765765076226,0.002,3134.8,3134.7,4.28257322]
[1765765076430,0.5472,3134.8,3134.7,3.19009793]
[1765765076730,0.5472,3134.8,3134.4,3.19032887]
[1765765076930,0.0732,3134.3,3134.2,3.77108214]
[1765765077095,0.0732,3134.3,3134.2,4.28308214]
[1765765077293,0.002,3134.8,3134.3,0.58047529]
[1765765077699,0.002,3134.8,3134.5,0.58047529]
[1765765077898,0.002,3134.8,3134.6,0.512]
[1765765078115,0.002,3134.8,3134.5,0.58047529]
[1765765078339,0.002,3134.8,3134.6,0.512]
[1765765078522,0.002,3134.8,3134.7,0.54390097]
[1765765079231,0.002,3134.8,3134.7,0.512]
[1765765080526,0.002,3134.8,3134.7,3.70209793]
[1765765081317,0.002,3134.8,3134.7,5.02985051]
[1765765081522,0.002,3134.8,3134.7,6.00285051]
[1765765081939,0.002,3134.8,3134.7,5.02985051]
[1765765082641,0.002,3134.8,3134.7,4.51785051]
[1765765082845,0.002,3134.8,3134.7,5.02985051]
[1765765083046,0.5473,3134.8,3134.7,3.77057322]
[1765765083208,0.002,3134.8,3134.7,4.75817322]
[1765765083405,0.002,3134.8,3134.7,4.28257322]
[1765765085332,0.002,3134.8,3134.7,4.75817322]
[1765765085533,0.002,3134.8,3134.7,6.45601451]
[1765765085844,0.45598029,3140.9,3138.8,0.1832]
[1765765086142,0.1275972,3141.1,3140.4,29.992877]
[1765765086354,0.1932,3140.9,3140.4,29.992877]
[1765765086580,0.1932,3140.9,3140.3,0.1660035]
[1765765086581,0.1275972,3141.1,3140.7,0.81746425]
[1765765086843,0.00966759,3141.3,3141.2,0.58047529]
[1765765087043,0.00966759,3141.3,3141.1,29.992877]
[1765765087228,0.00966759,3141.3,3141.2,31.07075229]
[1765765087433,0.00966759,3141.3,3141.2,32.15361173]
[1765765087638,0.00966759,3141.3,3141.2,31.9077282]
[1765765087876,0.00966759,3141.3,3141.2,30.97885629]
[1765765088140,0.1932,3143.8,3142.6,6.09595132]
[1765765088325,0.1932,3143.8,3141.2,3.70700313]
[1765765088326,0.54949692,3143.2,3142.8,29.992877]
[1765765088532,0.08699692,3143.2,3143.1,0.1832]
[1765765088732,0.08699692,3143.2,3143.1,36.88307985]
[1765765088945,0.08699692,3143.2,3143.1,34.25232462]
[1765765089238,0.02219265,3145.4,3143.2,30.57335229]
[1765765089239,0.4625,3144.4,3143.2,30.57335229]
[1765765089445,0.4625,3144.4,3143.4,0.58047529]
[1765765089611,0.6557,3145.0,3143.8,0.58047529]
[1765765089808,0.6557,3145.0,3143.1,3.18157233]
[1765765090008,0.6557,3145.0,3143.3,3.673222]
[1765765090308,0.5,3146.0,3143.1,6.36314466]
[1765765090309,3.17762948,3147.0,3146.0,29.992877]
[1765765090528,3.17762948,3147.0,3143.8,0.1832]
[1765765090529,0.1932,3147.1,3146.1,29.992877]
[1765765090729,0.1932,3147.1,3145.7,29.992877]
[1765765090937,0.1932,3147.1,3144.5,3.1800958]
[1765765090938,10.288199,3147.0,3144.5,3.1800958]
[1765765091139,3.022899,3147.0,3144.4,0.54855912]
[1765765091304,3.022899,3147.0,3143.7,0.4974]
[1765765091305,6.09595132,3145.9,3143.2,0.1832]
[1765765091519,12.90353001,3147.1,3144.1,29.992877]
[1765765091520,6.09595132,3145.2,3144.1,29.992877]
[1765765091760,0.58047529,3145.5,3143.4,29.992877]
[1765765091761,0.536,3145.3,3143.4,29.992877]
[1765765092158,6.09595132,3145.7,3143.5,0.535]
[1765765092159,0.1966,3145.2,3143.5,0.535]
[1765765092372,0.1966,3145.2,3143.8,29.992877]
[1765765092545,0.002,3144.2,3143.5,3.18116748]
[1765765092748,0.1986,3144.2,3143.6,29.992877]
[1765765092951,0.002,3144.2,3143.6,29.992877]
[1765765093182,0.002,3144.2,3144.1,0.1832]
[1765765093349,0.1986,3145.5,3144.2,53.742402]
[1765765093350,0.002,3145.5,3144.2,53.742402]
[1765765093551,0.002,3145.5,3144.9,0.58047529]
[1765765093751,0.002,3145.5,3145.2,29.992877]
[1765765093951,0.002,3145.5,3145.3,0.536]
[1765765094179,0.002,3145.5,3145.4,30.57335229]
[1765765094381,0.002,3145.5,3145.4,61.07075229]
[1765765094580,0.002,3145.5,3145.4,34.68560567]
[1765765094779,0.002,3145.5,3145.4,34.24999817]
[1765765094979,0.1932,3147.1,3145.4,34.78599817]
[1765765095183,0.1932,3147.1,3146.0,30.57335229]
[1765765095395,0.0993,3147.4,3146.2,29.992877]
[1765765095581,0.0993,3147.4,3145.4,21.40627863]
[1765765095582,0.0993,3147.4,3146.3,0.536]
[1765765095781,0.1986,3147.3,3145.5,29.992877]
[1765765096163,0.0993,3145.6,3144.4,29.992877]
[1765765096497,0.1986,3145.5,3144.8,29.992877]
[1765765096701,0.1986,3145.5,3144.3,29.992877]
[1765765096869,0.1986,3145.5,3144.5,29.992877]
[1765765097197,6.55689223,3145.5,3144.3,29.992877]
[1765765097361,6.55689223,3145.5,3143.3,33.17420417]
[1765765097561,6.55689223,3145.5,3143.7,3.18095946]
[1765765097562,0.1986,3145.4,3143.7,3.18095946]
[1765765097797,0.1986,3145.4,3143.3,29.992877]
[1765765097798,0.536,3145.3,3143.3,29.992877]
[1765765097966,0.1986,3145.4,3144.1,3.18054875]
[1765765098297,0.1986,3145.3,3144.2,29.992877]
[1765765098503,0.0993,3145.6,3144.2,30.490277]
[1765765098698,0.1986,3145.5,3144.5,29.992877]
[1765765098863,0.0993,3145.6,3144.7,29.992877]
[1765765099067,0.0993,3145.6,3144.8,0.536]
[1765765099298,0.0993,3145.6,3144.7,29.992877]
[1765765099299,0.0993,3145.6,3144.9,29.992877]
[1765765099467,0.0993,3145.6,3144.2,6.19064923]
[1765765099468,0.1986,3145.5,3144.7,29.992877]
[1765765099669,0.1986,3145.5,3144.3,3.1803581]
[1765765099882,0.1986,3145.5,3144.3,33.17317363]
[1765765100087,0.1986,3145.5,3144.4,29.992877]
[1765765100288,0.1986,3145.5,3144.3,29.992877]
[1765765100498,0.0993,3145.6,3144.5,0.58047529]
[1765765100669,0.1013,3145.6,3144.8,29.992877]
[1765765100994,0.1986,3145.5,3144.6,29.992877]
[1765765101194,0.1986,3145.5,3144.2,29.992877]
[1765765101394,0.7346,3145.5,3143.3,29.992877]
[1765765101572,0.7346,3145.5,3143.5,33.17403714]
[1765765101784,0.1986,3145.4,3143.7,29.992877]
[1765765102100,0.1986,3145.4,3143.4,30.528877]
[1765765102397,0.1986,3145.4,3143.2,0.00966759]
[1765765102398,5.51004923,3144.8,3143.2,0.00966759]
[1765765102578,0.0993,3143.3,3141.7,0.4974]
[1765765102777,3.28075436,3143.3,3142.1,29.992877]
[1765765102991,0.1986,3143.2,3142.1,29.992877]
[1765765103190,0.1986,3143.2,3142.1,29.91630996]
[1765765103501,0.1986,3143.2,3142.0,3.18261928]
[1765765103502,0.0993,3143.6,3142.3,35.42635919]
[1765765103670,0.1986,3144.5,3142.7,0.58047529]
[1765765103864,0.1986,3144.5,3142.4,3.24142594]
[1765765103865,0.1986,3144.5,3143.0,0.58047529]
[1765765104108,0.1986,3144.5,3143.1,29.91630996]
[1765765104305,0.7346,3144.5,3143.3,29.91630996]
[1765765104601,0.7346,3144.5,3143.1,29.91630996]
[1765765104897,0.1986,3144.4,3143.3,29.91630996]
[1765765105070,0.00966759,3145.5,3143.4,0.58047529]
[1765765105276,7.09309176,3145.4,3143.5,29.91630996]
[1765765105495,10.27233764,3145.4,3143.5,29.91630996]
[1765765105708,0.1986,3145.3,3143.5,29.91630996]
[1765765106001,0.00966759,3144.5,3143.5,29.91630996]
[1765765106176,0.536,3144.4,3143.5,29.91630996]
[1765765106380,0.7346,3144.4,3143.5,29.91630996]
[1765765106704,0.1986,3145.0,3143.9,0.58047529]
[1765765106903,0.1986,3145.0,3143.8,29.91630996]
[1765765106904,0.00966759,3144.8,3143.8,29.91630996]
[1765765107199,0.66642752,3144.8,3142.6,29.91630996]
[1765765107409,0.66642752,3144.8,3141.8,3.18287236]
[1765765107410,0.1986,3144.7,3143.4,3.18120426]
[1765765107606,0.1986,3144.7,3143.1,29.91630996]
[1765765107917,0.536,3144.6,3143.3,29.91630996]
[1765765108278,0.1986,3144.5,3142.9,29.91630996]
[1765765108472,0.1986,3144.5,3142.7,29.91630996]
[1765765108473,0.00966759,3143.9,3142.7,29.91630996]
[1765765108824,0.00966759,3143.9,3141.1,0.001]
[1765765108825,3.18177479,3142.9,3142.0,29.91630996]
[1765765109119,0.7336,3142.8,3141.9,29.91630996]
[1765765109275,0.0993,3143.0,3142.0,0.03182686]
[1765765109613,0.0993,3143.0,3141.9,29.91630996]
[1765765109614,0.2979,3143.0,3141.9,29.91630996]
[1765765109810,3.47958626,3143.0,3141.9,29.91630996]
[1765765110012,0.0993,3143.0,3142.1,29.91630996]
[1765765110174,0.1986,3142.9,3142.1,29.91630996]
[1765765110683,0.0993,3143.0,3142.4,3.18228105]
[1765765111010,0.0993,3143.0,3142.0,0.001]
[1765765111011,2.0346,3142.9,3142.0,0.001]
[1765765111505,2.0346,3142.9,3139.8,0.4912]
[1765765111506,1.904104,3142.8,3139.8,0.4912]
[1765765111676,2.74373052,3142.7,3140.6,0.1988]
[1765765111873,0.0983,3141.2,3140.7,3.1839908]
[1765765112209,0.0983,3141.2,3138.8,3.18588954]
[1765765112382,0.2959,3141.2,3140.0,3.18469718]
[1765765112591,0.2959,3141.2,3140.2,3.18449528]
[1765765112910,3.47939675,3141.2,3139.5,3.18514389]
[1765765113085,3.47939675,3141.2,3139.4,6.37064406]
[1765765113916,3.47939675,3141.2,3139.5,0.58047529]
[1765765114073,3.47939675,3141.2,3139.4,6.37064406]
[1765765114514,3.47939675,3141.2,3139.5,0.58047529]
[1765765115128,3.47939675,3141.2,3139.7,0.58047529]
[1765765115288,3.47939675,3141.2,3139.6,3.18511912]
[1765765115484,3.47939675,3141.2,3139.6,6.37023824]
[1765765115788,5.52800675,3141.2,3139.5,3.18517689]
[1765765116099,0.2959,3141.2,3139.5,6.56199746]
[1765765116412,3.47939675,3141.2,3139.6,0.58047529]
[1765765116719,4.14663729,3141.2,3139.6,0.58047529]
[1765765117128,4.14663729,3141.2,3139.8,0.58047529]
[1765765117129,0.96314054,3141.2,3139.8,0.58047529]
[1765765117326,0.96314054,3141.2,3139.8,1.07887529]
[1765765117327,0.8319,3141.2,3139.8,1.07887529]
[1765765117549,0.0983,3141.2,3139.8,1.07887529]
[1765765117699,0.8319,3141.2,3139.8,0.58047529]
[1765765117893,4.01539675,3141.2,3139.7,3.18501767]
[1765765118124,4.01539675,3141.2,3139.6,3.1851027]
[1765765118428,4.01539675,3141.2,3139.2,0.1916]
[1765765118748,29.966063,3140.5,3138.1,3.18661763]
[1765765119052,7.238046,3139.7,3137.5,0.4984]
[1765765119259,6.63720119,3139.4,3137.2,0.1916]
[1765765119550,8.60912,3139.2,3137.2,3.18754643]
[1765765119731,8.60912,3139.2,3137.4,3.18732566]
[1765765119920,0.1956,3139.1,3137.4,3.18732566]
[1765765120121,0.536,3139.0,3137.5,3.18723439]
[1765765120408,0.536,3139.0,3138.5,0.001]
[1765765120613,0.1956,3138.9,3138.5,0.001]
[1765765121201,3.18593092,3138.8,3138.5,0.001]
[1765765121430,3.38112497,3139.2,3138.5,0.001]
[1765765121763,0.1956,3139.2,3138.5,0.001]
[1765765121921,0.1956,3139.1,3138.5,0.001]
[1765765122121,0.0973,3139.3,3138.5,0.001]
[1765765122427,0.1956,3139.2,3138.5,0.001]
[1765765122632,0.00966759,3139.1,3138.5,0.001]
[1765765124447,0.00966759,3138.9,3138.5,0.001]
[1765765124846,0.1956,3138.8,3138.5,0.001]
[1765765125045,0.00966759,3138.7,3138.5,0.001]
[1765765125223,3.18613394,3138.6,3138.5,0.001]
[1765765125558,0.00966759,3139.1,3138.5,0.001]
[1765765125559,0.00966759,3139.2,3138.5,0.001]
[1765765125761,0.64196759,3139.3,3138.5,0.001]
[1765765125943,0.6323,3139.3,3138.5,0.001]
[1765765126144,6.64686878,3140.5,3138.5,0.4994]
[1765765126145,0.0973,3139.8,3138.5,0.4994]
[1765765126351,0.00966759,3139.7,3138.5,0.4994]